fUSD/lending_fUSD_20250313
["ID","MTS","AMOUNT","RATE_DAILY","PERIOD"]
[356059658,1741877442842,-500.0,0.00028413,18]
[356059659,1741877442852,-500.0,0.00028413,18]
[356059660,1741877442863,-500.0,0.00028413,18]
[356059661,1741877442872,-500.0,0.00028413,18]
[356059662,1741877442882,-500.0,0.00028413,18]
[356059663,1741877442892,-500.0,0.00028413,18]
[356059664,1741877442901,-500.0,0.00028413,18]
[356059665,1741877442911,-522.44822546,0.00028413,18]
[356059666,1741877442921,-706.18,0.00028413,18]
[356059667,1741877442930,-500.0,0.00028413,18]
[356059668,1741877442939,-500.0,0.00028413,18]
[356059669,1741877442949,-500.0,0.00028413,18]
[356059670,1741877442959,-354.83,0.00028413,7]
[356059671,1741877442968,-524.24203782,0.00028413,18]
[356059672,1741877442977,-500.0,0.00028413,18]
[356059673,1741877442987,-500.0,0.00028413,18]
[356059674,1741877442997,-500.0,0.00028413,18]
[356059675,1741877443007,-500.0,0.00028413,18]
[356059676,1741877443018,-560.01,0.00028413,18]
[356059677,1741877443027,-500.0,0.00028413,18]
[356059678,1741877443037,-500.0,0.00028413,18]
[356059679,1741877443047,-500.0,0.00028413,18]
[356059680,1741877443056,-500.0,0.00028413,18]
[356059681,1741877443066,-500.0,0.00028413,18]
[356059682,1741877443077,-500.0,0.00028413,18]
[356059683,1741877443087,-1794.13,0.00028413,18]
[356059684,1741877443096,-500.0,0.00028413,18]
[356059685,1741877443106,-500.0,0.00028413,18]
[356059686,1741877443116,-500.0,0.00028413,18]
[356059687,1741877443127,-500.0,0.00028413,18]
[356059688,1741877443137,-500.0,0.00028413,18]
[356059689,1741877443147,-500.0,0.00028413,18]
[356059690,1741877443157,-500.0,0.00028413,18]
[356059691,1741877443167,-500.0,0.00028413,18]
[356059692,1741877443177,-500.0,0.00028413,18]
[356059693,1741877443186,-500.0,0.00028413,18]
[356059694,1741877443195,-500.0,0.00028413,18]
[356059695,1741877443205,-500.0,0.00028413,18]
[356059696,1741877443215,-500.0,0.00028413,18]
[356059697,1741877443224,-237.91085079,0.00028413,18]
[356059698,1741877443234,-500.0,0.00028413,18]
[356059699,1741877443244,-500.0,0.00028413,18]
[356059700,1741877443254,-511.64566983,0.00028413,18]
[356059701,1741877443266,-500.0,0.00028413,18]
[356059702,1741877443276,-500.0,0.00028413,18]
[356059703,1741877443286,-500.0,0.00028413,18]
[356059704,1741877443295,-500.0,0.00028413,18]
[356059705,1741877443305,-500.0,0.00028413,18]
[356059706,1741877443314,-500.0,0.00028413,18]
[356059707,1741877443324,-500.0,0.00028413,18]
[356059708,1741877443333,-500.0,0.00028413,18]
[356059709,1741877443343,-848.53,0.00028413,18]
[356059710,1741877443352,-500.0,0.00028413,18]
[356059711,1741877443362,-500.0,0.00028413,18]
[356059712,1741877443371,-500.0,0.00028413,18]
[356059713,1741877443380,-500.0,0.00028413,18]
[356059714,1741877443395,-500.0,0.00028413,18]
[356059715,1741877443405,-500.0,0.00028413,18]
[356059716,1741877443414,-204.3354303,0.00028413,18]
[356059717,1741877443424,-500.0,0.00028413,18]
[356059718,1741877443433,-500.0,0.00028413,18]
[356059719,1741877443443,-500.0,0.00028413,18]
[356059720,1741877443452,-500.0,0.00028413,18]
[356059721,1741877443462,-500.0,0.00028413,18]
[356059722,1741877443472,-691.19,0.00028413,18]
[356059723,1741877443482,-500.0,0.00028413,18]
[356059724,1741877443491,-500.0,0.00028413,18]
[356059725,1741877443501,-501.4,0.00028413,18]
[356059726,1741877443511,-500.0,0.00028413,18]
[356059727,1741877443525,-500.0,0.00028413,18]
[356059728,1741877443535,-1201.08,0.00028413,18]
[356059729,1741877443545,-500.0,0.00028413,18]
[356059730,1741877443555,-617.67,0.00028413,18]
[356059731,1741877443566,-500.0,0.00028413,18]
[356059732,1741877443577,-500.0,0.00028413,18]
[356059733,1741877443586,-1329.69,0.00028413,18]
[356059734,1741877443596,-500.0,0.00028413,18]
[356059735,1741877443606,-580.97,0.00028413,18]
[356059736,1741877443615,-504.89285802,0.00028413,18]
[356059737,1741877443625,-573.25,0.00028413,18]
[356059738,1741877443634,-500.0,0.00028413,18]
[356059739,1741877443644,-714.67,0.00028413,18]
[356059740,1741877443654,-605.72324496,0.00028413,18]
[356059741,1741877443663,-500.0,0.00028413,18]
[356059742,1741877443672,-509.88887845,0.00028413,18]
[356059743,1741877443682,-500.0,0.00028413,18]
[356059744,1741877443692,-500.0,0.00028413,18]
[356059745,1741877443702,-582.82,0.00028413,18]
[356059746,1741877443711,-591.54,0.00028413,18]
[356059747,1741877443720,-500.0,0.00028413,18]
[356059748,1741877443730,-497.23929373,0.00028413,18]
[356059749,1741877443739,-589.44,0.00028413,18]
[356059750,1741877443749,-226826.32451,0.00028413,2]
[356059751,1741877443758,-230658.522307,0.00028413,2]
[356059752,1741877443771,-50000.0,0.00028414,11]
[356059753,1741877443780,-82482.2998216,0.00028414,2]
[356059754,1741877443789,-212915.559052,0.00028414,2]
[356059755,1741877443799,-500.0,0.00028415,18]
[356059756,1741877443808,-500.0,0.00028415,18]
[356059757,1741877443819,-706.18,0.00028415,18]
[356059758,1741877443831,-500.0,0.00028415,18]
[356059759,1741877443840,-560.01,0.00028415,18]
[356059760,1741877443850,-500.0,0.00028415,18]
[356059761,1741877443860,-500.0,0.00028415,18]
[356059762,1741877443869,-1794.13,0.00028415,18]
[356059763,1741877444042,-500.0,0.00028415,18]
[356059764,1741877444064,-500.0,0.00028415,18]
[356059765,1741877444075,-500.0,0.00028415,18]
[356059766,1741877444085,-848.53,0.00028415,18]
[356059767,1741877444095,-500.0,0.00028415,18]
[356059768,1741877444105,-500.0,0.00028415,18]
[356059769,1741877444115,-500.0,0.00028415,18]
[356059770,1741877444125,-500.0,0.00028415,18]
[356059771,1741877444135,-500.0,0.00028415,18]
[356059772,1741877444145,-501.4,0.00028415,18]
[356059773,1741877444155,-1201.08,0.00028415,18]
[356059774,1741877444164,-1329.69,0.00028415,18]
[356059775,1741877444174,-500.0,0.00028415,18]
[356059776,1741877444184,-573.25,0.00028415,18]
[356059777,1741877444194,-714.67,0.00028415,18]
[356059778,1741877444204,-582.82,0.00028415,18]
[356059779,1741877444213,-500.0,0.00028415,18]
[356059780,1741877444222,-53228.8897631,0.00028418,2]
[356059781,1741877444232,-500.0,0.00028419,18]
[356059782,1741877444242,-500.0,0.00028419,18]
[356059783,1741877444252,-500.0,0.00028419,18]
[356059784,1741877444266,-500.0,0.00028419,18]
[356059785,1741877444276,-500.0,0.00028419,18]
[356059786,1741877444286,-500.0,0.00028419,18]
[356059787,1741877444295,-500.0,0.00028419,18]
[356059788,1741877444305,-500.0,0.00028419,18]
[356059789,1741877444314,-500.0,0.00028419,18]
[356059790,1741877444323,-500.0,0.00028419,18]
[356059791,1741877444333,-877.5,0.00028419,18]
[356059792,1741877444343,-500.0,0.00028419,18]
[356059793,1741877444353,-546.0,0.00028419,18]
[356059795,1741877444363,-653.78,0.00028419,18]
[356059796,1741877444372,-500.0,0.00028419,18]
[356059797,1741877444381,-500.0,0.00028419,18]
[356059798,1741877444391,-500.0,0.00028419,18]
[356059799,1741877444400,-631.05,0.00028419,18]
[356059800,1741877444410,-621.2557502,0.00028419,18]
[356059801,1741877444419,-500.0,0.00028419,18]
[356059802,1741877444429,-506.60142834,0.00028419,18]
[356059803,1741877444439,-500.0,0.00028419,18]
[356059804,1741877444448,-500.0,0.00028419,18]
[356059805,1741877444457,-500.0,0.00028419,18]
[356059806,1741877444467,-500.0,0.00028419,18]
[356059807,1741877444476,-778.61,0.00028419,18]
[356059808,1741877444485,-500.0,0.00028419,18]
[356059809,1741877444495,-500.0,0.00028419,18]
[356059810,1741877444504,-489.06218795,0.00028419,18]
[356059811,1741877444516,-500.0,0.00028419,18]
[356059812,1741877444525,-500.0,0.00028419,18]
[356059813,1741877444535,-500.0,0.00028419,18]
[356059814,1741877444544,-500.0,0.00028419,18]
[356059815,1741877444554,-500.0,0.00028419,18]
[356059816,1741877444563,-500.0,0.00028419,18]
[356059817,1741877444576,-500.0,0.00028419,18]
[356059818,1741877444586,-500.0,0.00028419,18]
[356059819,1741877444595,-500.0,0.00028419,18]
[356059820,1741877444606,-500.0,0.00028419,18]
[356059821,1741877444615,-500.0,0.00028419,18]
[356059822,1741877444625,-500.0,0.00028419,18]
[356059823,1741877444634,-500.0,0.00028419,18]
[356059824,1741877444644,-500.0,0.00028419,18]
[356059825,1741877444654,-500.0,0.00028419,18]
[356059826,1741877444663,-500.0,0.00028419,18]
[356059827,1741877444673,-500.0,0.00028419,18]
[356059828,1741877444682,-500.0,0.00028419,18]
[356059829,1741877444692,-532.35753148,0.00028419,18]
[356059830,1741877444702,-500.0,0.00028419,18]
[356059831,1741877444712,-436.60528596,0.00028419,18]
[356059832,1741877444721,-500.0,0.00028419,18]
[356059833,1741877444732,-500.0,0.00028419,18]
[356059834,1741877444742,-239.24634425,0.00028419,18]
[356059835,1741877444751,-354.83,0.00028419,7]
[356059836,1741877444763,-500.0,0.00028419,18]
[356059837,1741877444773,-500.0,0.00028419,18]
[356059838,1741877444783,-500.0,0.00028419,18]
[356059839,1741877444793,-500.0,0.00028419,18]
[356059840,1741877444802,-500.0,0.00028419,18]
[356059841,1741877444814,-516.24121987,0.00028419,18]
[356059843,1741877444826,-500.0,0.00028419,18]
[356059844,1741877444835,-500.0,0.00028419,18]
[356059845,1741877444845,-296.57943234,0.00028419,18]
[356059846,1741877444854,-500.0,0.00028419,18]
[356059847,1741877444865,-506.75237484,0.00028419,18]
[356059848,1741877444874,-500.0,0.00028419,18]
[356059849,1741877444884,-500.0,0.00028419,18]
[356059850,1741877444894,-500.0,0.00028419,18]
[356059851,1741877444906,-500.0,0.00028419,18]
[356059852,1741877444918,-500.0,0.00028419,18]
[356059853,1741877444927,-500.0,0.00028419,18]
[356059854,1741877444937,-295.03651165,0.00028419,18]
[356059855,1741877444946,-500.0,0.00028419,18]
[356059856,1741877444955,-500.0,0.00028419,18]
[356059857,1741877444965,-500.0,0.00028419,18]
[356059858,1741877444975,-511.51879852,0.00028419,18]
[356059859,1741877444984,-500.0,0.00028419,18]
[356059860,1741877444994,-500.0,0.00028419,18]
[356059861,1741877445004,-480.55858622,0.00028419,18]
[356059862,1741877445014,-500.0,0.00028419,18]
[356059863,1741877445025,-500.0,0.00028419,18]
[356059864,1741877445036,-526.27973751,0.00028419,18]
[356059865,1741877445045,-500.0,0.00028419,18]
[356059866,1741877445055,-525.36439079,0.00028419,18]
[356059867,1741877445066,-500.0,0.00028419,18]
[356059868,1741877445075,-500.0,0.00028419,18]
[356059869,1741877445089,-500.0,0.00028419,18]
[356059870,1741877445099,-517.14982773,0.00028419,18]
[356059871,1741877445108,-500.0,0.00028419,18]
[356059872,1741877445118,-691.19,0.00028419,18]
[356059873,1741877445128,-524.03161686,0.00028419,18]
[356059874,1741877445137,-500.0,0.00028419,18]
[356059875,1741877445146,-500.0,0.00028419,18]
[356059876,1741877445155,-500.0,0.00028419,18]
[356059877,1741877445165,-617.67,0.00028419,18]
[356059878,1741877445174,-500.0,0.00028419,18]
[356059879,1741877445184,-500.0,0.00028419,18]
[356059880,1741877445194,-580.97,0.00028419,18]
[356059881,1741877445204,-500.0,0.00028419,18]
[356059882,1741877445213,-500.0,0.00028419,18]
[356059883,1741877445222,-500.0,0.00028419,18]
[356059884,1741877445232,-500.0,0.00028419,18]
[356059885,1741877445241,-591.54,0.00028419,18]
[356059886,1741877445250,-589.44,0.00028419,18]
[356059887,1741877445260,-35485.9265087,0.00028419,2]
[356059888,1741877445272,-1076.94,0.0002842,18]
[356059889,1741877445282,-920.42,0.0002842,18]
[356059890,1741877445291,-806.85,0.0002842,18]
[356059891,1741877445301,-500.0,0.0002842,18]
[356059892,1741877445310,-612.98,0.0002842,18]
[356059893,1741877445320,-500.0,0.0002842,18]
[356059894,1741877445330,-654.17,0.0002842,18]
[356059895,1741877445339,-500.0,0.0002842,18]
[356059896,1741877445348,-500.0,0.0002842,18]
[356059897,1741877445358,-500.0,0.0002842,18]
[356059898,1741877445368,-500.0,0.0002842,18]
[356059899,1741877445377,-500.0,0.0002842,18]
[356059900,1741877445387,-500.0,0.0002842,18]
[356059901,1741877445396,-500.0,0.0002842,18]
[356059902,1741877445405,-829.63,0.0002842,18]
[356059903,1741877445414,-628.41,0.0002842,18]
[356059904,1741877445423,-500.0,0.0002842,18]
[356059905,1741877445432,-500.0,0.0002842,18]
[356059906,1741877445441,-500.0,0.0002842,18]
[356059907,1741877445451,-500.0,0.0002842,18]
[356059908,1741877445460,-500.0,0.0002842,18]
[356059909,1741877445470,-500.0,0.0002842,18]
[356059910,1741877445479,-500.0,0.0002842,18]
[356059911,1741877445489,-500.0,0.0002842,18]
[356059912,1741877445499,-500.0,0.0002842,18]
[356059913,1741877445508,-590.79,0.0002842,18]
[356059914,1741877445519,-500.0,0.0002842,18]
[356059915,1741877445528,-500.0,0.0002842,18]
[356059916,1741877445538,-500.0,0.0002842,18]
[356059917,1741877445547,-500.0,0.0002842,18]
[356059918,1741877445557,-500.0,0.0002842,18]
[356059919,1741877445566,-500.0,0.0002842,18]
[356059920,1741877445575,-500.0,0.0002842,18]
[356059921,1741877445585,-500.0,0.0002842,18]
[356059922,1741877445594,-500.0,0.0002842,18]
[356059923,1741877445604,-500.0,0.0002842,18]
[356059924,1741877445613,-520.42,0.0002842,18]
[356059925,1741877445623,-500.0,0.0002842,18]
[356059926,1741877445632,-1443.64,0.0002842,18]
[356059927,1741877445642,-543.74,0.0002842,18]
[356059928,1741877445651,-2624.51,0.0002842,18]
[356059929,1741877445660,-612.61,0.0002842,18]
[356059930,1741877445670,-500.0,0.0002842,18]
[356059931,1741877445679,-512.35,0.0002842,18]
[356059932,1741877445689,-630.4,0.0002842,18]
[356059933,1741877445698,-589.78,0.0002842,18]
[356059934,1741877445707,-1049.42,0.0002842,18]
[356059935,1741877445717,-630.74,0.0002842,18]
[356059936,1741877445726,-500.0,0.0002842,18]
[356059937,1741877445736,-867.081518,0.0002842,18]
[356059938,1741877445745,-500.0,0.0002842,18]
[356059939,1741877445755,-6022.95,0.0002842,2]
[356059940,1741877445766,-500.0,0.0002842,18]
[356059941,1741877445775,-1191.84,0.0002842,18]
[356059942,1741877445785,-1254.42,0.0002842,18]
[356059943,1741877445794,-732.88,0.0002842,18]
[356059944,1741877445803,-500.0,0.0002842,18]
[356059945,1741877445815,-611.51,0.0002842,18]
[356059946,1741877445825,-500.0,0.0002842,18]
[356059947,1741877445835,-943.15,0.0002842,18]
[356059948,1741877445845,-517.25,0.0002842,18]
[356059949,1741877445855,-968.62,0.0002842,18]
[356059950,1741877445864,-592.53,0.0002842,18]
[356059951,1741877445874,-1936.13,0.0002842,18]
[356059952,1741877445883,-2562.48,0.0002842,18]
[356059954,1741877445895,-1591.35,0.0002842,18]
[356059955,1741877445904,-2233.91,0.0002842,18]
[356059956,1741877445913,-1531.67,0.0002842,18]
[356059957,1741877445923,-917.98,0.0002842,18]
[356059958,1741877445933,-774.11,0.0002842,18]
[356059959,1741877445942,-584.93,0.0002842,18]
[356059960,1741877445951,-3142.78,0.0002842,18]
[356059961,1741877445961,-650.5,0.0002842,18]
[356059962,1741877445971,-1284.79,0.0002842,18]
[356059963,1741877445981,-1328.89,0.0002842,18]
[356059964,1741877445991,-673.07,0.0002842,18]
[356059965,1741877446000,-750.81,0.0002842,18]
[356059966,1741877446010,-1372.56,0.0002842,18]
[356059967,1741877446023,-500.0,0.0002842,18]
[356059968,1741877446032,-1294.14,0.0002842,18]
[356059969,1741877446041,-1026.51,0.0002842,18]
[356059970,1741877446051,-222.06247086,0.0002842,18]
[356059971,1741877446061,-1799.08,0.0002842,18]
[356059972,1741877446071,-607.97,0.0002842,10]
[356059973,1741877446081,-1149.34,0.0002842,18]
[356059974,1741877446091,-3134.61,0.0002842,18]
[356059975,1741877446100,-500.0,0.0002842,18]
[356059976,1741877446110,-500.0,0.0002842,18]
[356059977,1741877446120,-500.0,0.0002842,18]
[356059978,1741877446130,-500.0,0.0002842,18]
[356059979,1741877446140,-1839.29,0.0002842,18]
[356059980,1741877446150,-795.32,0.0002842,18]
[356059981,1741877446162,-1131.1,0.0002842,18]
[356059982,1741877446173,-805.12,0.0002842,18]
[356059983,1741877446184,-3749.8,0.0002842,18]
[356059984,1741877446195,-2736.88,0.0002842,18]
[356059985,1741877446205,-500.0,0.0002842,18]
[356059986,1741877446215,-500.0,0.0002842,18]
[356059987,1741877446226,-500.0,0.0002842,18]
[356059988,1741877446236,-565.02,0.0002842,18]
[356059989,1741877446247,-2839.76,0.0002842,18]
[356059990,1741877446257,-1507.84,0.0002842,18]
[356059991,1741877446281,-749.62,0.0002842,18]
[356059992,1741877446296,-208.52492322,0.0002842,18]
[356059993,1741877446306,-500.0,0.0002842,18]
[356059994,1741877446316,-500.0,0.0002842,18]
[356059995,1741877446326,-4668.69,0.0002842,18]
[356059996,1741877446336,-17742.9632544,0.0002842,2]
[356059997,1741877446346,-2624.51,0.00028421,18]
[356059998,1741877446361,-512.35,0.00028421,18]
[356059999,1741877446372,-630.4,0.00028421,18]
[356060000,1741877446382,-1049.42,0.00028421,18]
[356060001,1741877446393,-630.74,0.00028421,18]
[356060002,1741877446403,-867.081518,0.00028421,18]
[356060003,1741877446413,-500.0,0.00028421,18]
[356060004,1741877446423,-6022.95,0.00028421,2]
[356060005,1741877446433,-1191.84,0.00028421,18]
[356060006,1741877446443,-732.88,0.00028421,18]
[356060007,1741877446453,-500.0,0.00028421,18]
[356060008,1741877446463,-517.25,0.00028421,18]
[356060009,1741877446474,-2562.48,0.00028421,18]
[356060010,1741877446485,-1591.35,0.00028421,18]
[356060011,1741877446495,-1531.67,0.00028421,18]
[356060012,1741877446506,-774.11,0.00028421,18]
[356060013,1741877446519,-584.93,0.00028421,18]
[356060014,1741877446618,-500.0,0.00028421,18]
[356060015,1741877446628,-1328.89,0.00028421,18]
[356060016,1741877446637,-500.0,0.00028421,18]
[356060017,1741877446647,-706.18,0.00028421,18]
[356060018,1741877446656,-500.0,0.00028421,18]
[356060019,1741877446666,-1372.56,0.00028421,18]
[356060020,1741877446676,-500.0,0.00028421,18]
[356060021,1741877446686,-1799.08,0.00028421,18]
[356060022,1741877446695,-560.01,0.00028421,18]
[356060023,1741877446704,-500.0,0.00028421,18]
[356060024,1741877446714,-3134.61,0.00028421,18]
[356060025,1741877446723,-500.0,0.00028421,18]
[356060026,1741877446733,-1794.13,0.00028421,18]
[356060027,1741877446743,-500.0,0.00028421,18]
[356060028,1741877446753,-500.0,0.00028421,18]
[356060029,1741877446764,-795.32,0.00028421,18]
[356060030,1741877446775,-500.0,0.00028421,18]
[356060031,1741877446784,-805.12,0.00028421,18]
[356060032,1741877446795,-3749.8,0.00028421,18]
[356060033,1741877446805,-848.53,0.00028421,18]
[356060034,1741877446816,-500.0,0.00028421,18]
[356060035,1741877446830,-500.0,0.00028421,18]
[356060036,1741877446839,-500.0,0.00028421,18]
[356060037,1741877446849,-500.0,0.00028421,18]
[356060038,1741877446858,-500.0,0.00028421,18]
[356060039,1741877446869,-501.4,0.00028421,18]
[356060040,1741877446879,-565.02,0.00028421,18]
[356060041,1741877446887,-1201.08,0.00028421,18]
[356060042,1741877446897,-1329.69,0.00028421,18]
[356060043,1741877446908,-500.0,0.00028421,18]
[356060044,1741877446918,-500.0,0.00028421,18]
[356060045,1741877446928,-573.25,0.00028421,18]
[356060046,1741877446938,-714.67,0.00028421,18]
[356060047,1741877446948,-582.82,0.00028421,18]
[356060048,1741877446958,-500.0,0.00028421,18]
[356060049,1741877446968,-1076.94,0.00028422,18]
[356060050,1741877446977,-1076.94,0.00028422,18]
[356060051,1741877446987,-920.42,0.00028422,18]
[356060052,1741877446996,-920.42,0.00028422,18]
[356060053,1741877447006,-806.85,0.00028422,18]
[356060054,1741877447019,-806.85,0.00028422,18]
[356060055,1741877447028,-500.0,0.00028422,18]
[356060056,1741877447038,-500.0,0.00028422,18]
[356060057,1741877447048,-612.98,0.00028422,18]
[356060058,1741877447057,-612.98,0.00028422,18]
[356060059,1741877447067,-500.0,0.00028422,18]
[356060060,1741877447076,-500.0,0.00028422,18]
[356060061,1741877447085,-654.17,0.00028422,18]
[356060062,1741877447096,-654.17,0.00028422,18]
[356060063,1741877447105,-500.0,0.00028422,18]
[356060064,1741877447115,-500.0,0.00028422,18]
[356060065,1741877447125,-500.0,0.00028422,18]
[356060066,1741877447135,-500.0,0.00028422,18]
[356060067,1741877447144,-500.0,0.00028422,18]
[356060068,1741877447154,-500.0,0.00028422,18]
[356060069,1741877447164,-500.0,0.00028422,18]
[356060070,1741877447173,-500.0,0.00028422,18]
[356060071,1741877447183,-500.0,0.00028422,18]
[356060072,1741877447193,-500.0,0.00028422,18]
[356060073,1741877447203,-500.0,0.00028422,18]
[356060074,1741877447212,-500.0,0.00028422,18]
[356060075,1741877447223,-500.0,0.00028422,18]
[356060076,1741877447233,-500.0,0.00028422,18]
[356060077,1741877447243,-829.63,0.00028422,18]
[356060078,1741877447253,-829.63,0.00028422,18]
[356060079,1741877447267,-628.41,0.00028422,18]
[356060080,1741877447277,-628.41,0.00028422,18]
[356060081,1741877447287,-500.0,0.00028422,18]
[356060082,1741877447297,-500.0,0.00028422,18]
[356060083,1741877447307,-500.0,0.00028422,18]
[356060084,1741877447316,-500.0,0.00028422,18]
[356060085,1741877447325,-500.0,0.00028422,18]
[356060086,1741877447335,-500.0,0.00028422,18]
[356060087,1741877447345,-500.0,0.00028422,18]
[356060088,1741877447356,-500.0,0.00028422,18]
[356060089,1741877447365,-500.0,0.00028422,18]
[356060090,1741877447375,-500.0,0.00028422,18]
[356060091,1741877447385,-500.0,0.00028422,18]
[356060092,1741877447395,-500.0,0.00028422,18]
[356060093,1741877447404,-500.0,0.00028422,18]
[356060094,1741877447413,-500.0,0.00028422,18]
[356060095,1741877447423,-500.0,0.00028422,18]
[356060096,1741877447433,-500.0,0.00028422,18]
[356060097,1741877447442,-500.0,0.00028422,18]
[356060098,1741877447452,-500.0,0.00028422,18]
[356060099,1741877447461,-590.79,0.00028422,18]
[356060100,1741877447471,-590.79,0.00028422,18]
[356060101,1741877447481,-500.0,0.00028422,18]
[356060102,1741877447490,-500.0,0.00028422,18]
[356060103,1741877447500,-500.0,0.00028422,18]
[356060104,1741877447509,-500.0,0.00028422,18]
[356060105,1741877447521,-500.0,0.00028422,18]
[356060106,1741877447531,-500.0,0.00028422,18]
[356060107,1741877447540,-500.0,0.00028422,18]
[356060108,1741877447550,-500.0,0.00028422,18]
[356060109,1741877447559,-500.0,0.00028422,18]
[356060110,1741877447569,-500.0,0.00028422,18]
[356060111,1741877447579,-500.0,0.00028422,18]
[356060112,1741877447589,-500.0,0.00028422,18]
[356060113,1741877447598,-500.0,0.00028422,18]
[356060114,1741877447607,-500.0,0.00028422,18]
[356060115,1741877447617,-500.0,0.00028422,18]
[356060116,1741877447626,-500.0,0.00028422,18]
[356060117,1741877447635,-500.0,0.00028422,18]
[356060118,1741877447645,-500.0,0.00028422,18]
[356060119,1741877447654,-500.0,0.00028422,18]
[356060120,1741877447663,-500.0,0.00028422,18]
[356060121,1741877447672,-500.0,0.00028422,18]
[356060122,1741877447683,-535.22867316,0.00028422,18]
[356060123,1741877447693,-520.42,0.00028422,18]
[356060124,1741877447702,-520.42,0.00028422,18]
[356060125,1741877447711,-500.0,0.00028422,18]
[356060126,1741877447720,-500.0,0.00028422,18]
[356060127,1741877447730,-500.0,0.00028422,18]
[356060128,1741877447740,-580.99650639,0.00028422,18]
[356060129,1741877447749,-500.0,0.00028422,18]
[356060130,1741877447759,-1443.64,0.00028422,18]
[356060131,1741877447769,-500.0,0.00028422,18]
[356060132,1741877447778,-1443.64,0.00028422,18]
[356060133,1741877447788,-500.0,0.00028422,18]
[356060134,1741877447797,-500.0,0.00028422,18]
[356060135,1741877447807,-543.74,0.00028422,18]
[356060136,1741877447820,-500.0,0.00028422,18]
[356060137,1741877447829,-543.74,0.00028422,18]
[356060138,1741877447839,-2624.51,0.00028422,18]
[356060139,1741877447848,-877.5,0.00028422,18]
[356060140,1741877447858,-612.61,0.00028422,18]
[356060141,1741877447867,-612.61,0.00028422,18]
[356060142,1741877447876,-500.0,0.00028422,18]
[356060143,1741877447886,-546.0,0.00028422,18]
[356060144,1741877447895,-653.78,0.00028422,18]
[356060145,1741877447905,-500.0,0.00028422,18]
[356060146,1741877447914,-500.0,0.00028422,18]
[356060147,1741877447923,-512.35,0.00028422,18]
[356060148,1741877447932,-500.0,0.00028422,18]
[356060149,1741877447941,-630.4,0.00028422,18]
[356060150,1741877447951,-500.0,0.00028422,18]
[356060151,1741877447960,-500.0,0.00028422,18]
[356060152,1741877447969,-631.05,0.00028422,18]
[356060153,1741877447978,-589.78,0.00028422,18]
[356060154,1741877447988,-589.78,0.00028422,18]
[356060155,1741877447997,-1049.42,0.00028422,18]
[356060156,1741877448006,-630.74,0.00028422,18]
[356060157,1741877448017,-500.0,0.00028422,18]
[356060158,1741877448026,-500.0,0.00028422,18]
[356060159,1741877448036,-500.0,0.00028422,18]
[356060160,1741877448045,-867.081518,0.00028422,18]